fUSD/lending_fUSD_20240123
["ID","MTS","AMOUNT","RATE_DAILY","PERIOD"]
[312582739,1706027432370,-478.19585243,0.00021048,2]
[312582740,1706027432379,-4707.23527458,0.00021048,2]
[312582741,1706027432390,-304.76125718,0.00021048,2]
[312582742,1706027432400,-348.06286348,0.00021048,2]
[312582743,1706027432409,-911.73855083,0.00021048,2]
[312582744,1706027432420,-1968.41070439,0.00021048,2]
[312582745,1706027432429,-1242.39004047,0.00021048,2]
[312582746,1706027432439,-167.96801762,0.00021048,2]
[312582747,1706027432449,-301.90910224,0.00021049,2]
[312582748,1706027432458,-400.06896681,0.00021049,2]
[312582749,1706027432472,-232.92375042,0.00021049,2]
[312582750,1706027432482,-155.0,0.00021049,2]
[312582751,1706027432492,-238.75253071,0.00021049,2]
[312582753,1706027432502,-156.78137362,0.00021049,2]
[312582755,1706027432512,-155.42586713,0.00021049,2]
[312582757,1706027432522,-3359.7,0.00021049,2]
[312582759,1706027432531,-499.99,0.00021049,2]
[312582761,1706027432541,-150.99,0.00021049,2]
[312582763,1706027432550,-4268.41061594,0.0002105,2]
[312582765,1706027432562,-15000.0,0.0002105,2]
[312582768,1706027432575,-1953.0483,0.0002105,2]
[312582769,1706027432596,-1277.78904127,0.0002105,2]
[312582770,1706027432662,-1432.18835877,0.0002105,2]
[312582796,1706027438804,-17166.6,0.0002105,2]
[312582799,1706027438816,-3838.95498097,0.0002105,2]
[312582801,1706027438825,-234.89781562,0.0002105,2]
[312582803,1706027438834,-1173.19,0.0002105,2]
[312582805,1706027438844,-11919.73772549,0.00021052,2]
[312582807,1706027438853,-1052.85435099,0.00021058,2]
[312582809,1706027438863,-1265.91696724,0.00021058,2]
[312582811,1706027438873,-2299.34991677,0.00021058,2]
[312582813,1706027438882,-14126.0,0.0002106,2]
[312582814,1706027438892,-392.31,0.0002106,2]
[312582817,1706027438902,-1629.45,0.0002106,2]
[312582819,1706027438912,-1076.48,0.0002106,2]
[312582821,1706027438922,-203.29975543,0.0002108,2]
[312582823,1706027438933,-213.20943281,0.0002108,2]
[312582825,1706027438985,-155.40243129,0.0002108,2]
[312582827,1706027438995,-155.62535274,0.0002108,2]
[312582829,1706027439006,-849.7150499,0.0002108,2]
[312582830,1706027439017,-975.73879934,0.0002108,2]
[312582833,1706027439027,-155.95609402,0.0002108,2]
[312582835,1706027439036,-2979.62207994,0.00021081,2]
[312582836,1706027439046,-243.87713086,0.00021082,2]
[312582839,1706027439062,-51.24375332,0.00021082,2]
[312582841,1706027439072,-782.25004421,0.00021082,2]
[312582845,1706027439094,-1518.11308694,0.00021082,2]
[312582847,1706027439104,-172.02741418,0.00021082,2]
[312582849,1706027439114,-3949.62909764,0.00021082,2]
[312582851,1706027439123,-346.04821517,0.00021082,2]
[312582853,1706027439132,-1844.68218607,0.00021082,4]
[312582855,1706027439143,-731.43467508,0.00021082,4]
[312582859,1706027439171,-1099.75854406,0.00021082,4]
[312582861,1706027439183,-225.94720434,0.00021082,2]
[312582862,1706027439192,-398.79823949,0.00021083,2]
[312582863,1706027439201,-489.18573664,0.00021084,2]
[312582864,1706027439210,-81.50807547,0.00021085,2]
[312582865,1706027439221,-935.77931173,0.00021085,2]
[312582866,1706027439230,-161.87,0.00021138,2]
[312582867,1706027439239,-161.87,0.00021272,2]
[312582868,1706027439248,-161.87,0.00021406,2]
[312582869,1706027439257,-161.87,0.0002154,2]
[312582870,1706027439266,-1003.2183,0.00021575,2]
[312582871,1706027439276,-455.5872,0.00021575,2]
[312582872,1706027439285,-500.0,0.00021575,2]
[312582874,1706027439294,-11620.17278535,0.00021575,2]
[312582876,1706027439306,-1411.12351465,0.00021575,2]
[312582878,1706027439315,-4500.43,0.00021644,2]
[312582880,1706027439325,-485.59833642,0.0002165,2]
[312582882,1706027439334,-161.87,0.00021674,2]
[312582884,1706027439343,-350.85247678,0.00021675,2]
[312582886,1706027439353,-17409.32187431,0.00021675,2]
[312582888,1706027439364,-259.26359193,0.00021675,2]
[312582892,1706027439391,-764.65,0.00021675,2]
[312583048,1706027440638,-300.0,0.00021675,2]
[312583051,1706027440650,-133164.60313376,0.00021675,2]
[312583054,1706027440661,-150.0,0.00021711,2]
[312583057,1706027440670,-680.6996,0.00021775,2]
[312583060,1706027440680,-413.3372,0.00021775,2]
[312583063,1706027440689,-7510.2338,0.00021775,2]
[312583066,1706027440698,-7523.1456,0.00021775,2]
[312583068,1706027440708,-289.74620309,0.00021869,2]
[312583071,1706027440718,-155.0,0.00021869,2]
[312583073,1706027440727,-260.29941624,0.00021869,2]
[312583075,1706027440736,-309.727205,0.00021869,2]
[312583077,1706027440746,-155.37183511,0.00021869,2]
[312583079,1706027440755,-155.0,0.00021869,2]
[312583081,1706027440765,-617.43229226,0.00021869,2]
[312583083,1706027440774,-1784.65334692,0.00021869,2]
[312583084,1706027440784,-155.64276988,0.00021869,2]
[312583085,1706027440793,-230.73082258,0.00021871,2]
[312583086,1706027440803,-242.77004565,0.00021872,2]
[312583087,1706027440812,-376.72344248,0.00021873,2]
[312583088,1706027440821,-408.03708546,0.00021873,2]
[312583089,1706027440831,-509.22010843,0.00021874,2]
[312583090,1706027440840,-291.80377604,0.00021874,2]
[312583091,1706027440849,-100000.0,0.00021875,2]
[312583092,1706027440859,-166.29551274,0.00021896,2]
[312583093,1706027440868,-250.0,0.00021918,2]
[312583094,1706027440879,-10000.0,0.00021918,2]
[312583095,1706027440888,-941.96786961,0.00022,2]
[312583096,1706027440898,-1672.54,0.00022167,2]
[312583097,1706027440907,-1360.84061075,0.00022308,2]
[312583098,1706027440916,-1360.84061074,0.00022308,2]
[312583099,1706027440926,-156.77,0.00022408,2]
[312583100,1706027440936,-4500.43,0.00022445,2]
[312583101,1706027440946,-178.49867064,0.0002261,2]
[312583102,1706027440955,-457.5831,0.000228,2]
[312583103,1706027440964,-166.29551274,0.00022843,2]
[312583104,1706027440973,-209.0,0.0002288,2]
[312583105,1706027440983,-300.0,0.00022892,2]
[312583106,1706027440992,-2019.78214721,0.00022898,2]
[312583107,1706027441002,-1852.29318255,0.00022898,2]
[312583108,1706027441016,-362.66830346,0.00022898,2]
[312583109,1706027441026,-3029.62518172,0.00022898,2]
[312583110,1706027441035,-2899.83113271,0.00022898,2]
[312583111,1706027441044,-177.65890692,0.00022898,2]
[312583112,1706027441054,-365.09221036,0.00022898,2]
[312583113,1706027441063,-155.0,0.00022898,2]
[312583114,1706027441073,-181.62975253,0.00022898,2]
[312583115,1706027441083,-101797.35419648,0.000229,2]
[312583116,1706027441279,-269.48451716,0.000229,2]
[312583118,1706027441544,-315.98060758,0.000229,2]
[312583122,1706027441575,-1474.84336839,0.000229,2]
[312583154,1706027442051,-409.47044411,0.000229,2]
[312583205,1706027443165,-694.5375725,0.000229,2]
[312583229,1706027443340,-1794.17840074,0.000229,2]
[312583232,1706027443361,-640.79833317,0.000229,2]
[312583234,1706027443372,-9121.76654697,0.000229,2]
[312583236,1706027443383,-1227.33,0.000229,2]
[312583239,1706027443398,-779.562948,0.000229,2]
[312583241,1706027443410,-1045.89934814,0.000229,2]
[312583243,1706027443421,-495.58079881,0.000229,2]
[312583246,1706027443434,-9347.99953933,0.000229,2]
[312583248,1706027443443,-1000.0,0.0002299,2]
[312583250,1706027443452,-307.11974338,0.00022999,2]
[312583252,1706027443461,-292.85,0.00023018,2]
[312583254,1706027443470,-150.0,0.00023081,2]
[312583256,1706027443479,-210.0,0.00023151,2]
[312583258,1706027443488,-2266.98420332,0.00023245,2]
[312583260,1706027443500,-2233.44579668,0.00023245,2]
[312583262,1706027443510,-166.29551274,0.00023791,2]
[312583264,1706027443518,-1672.54,0.00023811,2]
[312583266,1706027443527,-156.77,0.00023993,2]
[312583268,1706027443537,-201.31020997,0.00024,2]
[312583270,1706027443546,-155.6862248,0.00024,2]
[312583272,1706027443556,-244.04340674,0.00024036,2]
[312583274,1706027443565,-4500.43,0.00024046,2]
[312583276,1706027443574,-167.0,0.00024297,2]
[312583278,1706027443584,-167.0,0.00024297,2]
[312583280,1706027443592,-250.0,0.00024658,2]
[312583282,1706027443602,-946.89,0.00024658,4]
[312583284,1706027443611,-2556.0,0.000247,2]
[312583286,1706027443620,-7852.0,0.000247,2]
[312583288,1706027443629,-166.29551274,0.00024738,2]
[312583290,1706027443638,-4500.43,0.00024847,2]
[312583292,1706027443648,-299.999999,0.00025,2]
[312583293,1706027443657,-1075.57554515,0.00025,2]
[312583294,1706027443666,-242.30425329,0.00025,2]
[312583296,1706027443676,-450.0,0.00025,3]
[312583298,1706027443687,-292.85,0.00025282,2]
[312583300,1706027443696,-1672.54,0.00025455,2]
[312583302,1706027443705,-1000.0,0.00025545,2]
[312583304,1706027443714,-156.77,0.00025578,2]
[312583306,1706027443724,-166.29551274,0.00025686,2]
[312583308,1706027443733,-350.85247672,0.00025707,2]
[312583310,1706027443742,-167.0,0.00026302,2]
[312583312,1706027443751,-1948.8,0.00026575,2]
[312583314,1706027443760,-719.29,0.00026575,2]
[312583316,1706027443769,-166.29551274,0.00026633,2]
[312583317,1706027443778,-416.53728954,0.00027,2]
[312583318,1706027443788,-500.0,0.00027,3]
[312583319,1706027443797,-1672.54,0.00027098,2]
[312583320,1706027443806,-1561.61,0.00027123,2]
[312583321,1706027443815,-156.77,0.00027163,2]
[312583322,1706027443825,-160.32,0.00027397,2]
[312583323,1706027443834,-292.85,0.00027546,2]
[312583324,1706027443843,-166.29551274,0.00027581,2]
[312583325,1706027443853,-160.32,0.00027686,2]
[312583327,1706027443862,-160.32,0.00027974,2]
[312583329,1706027443871,-689.47449739,0.00028,2]
[312583331,1706027443880,-1000.0,0.00028099,2]
[312583333,1706027443889,-160.32,0.00028262,2]
[312583335,1706027443899,-167.0,0.00028307,2]
[312583337,1706027443909,-167.0,0.00028307,2]
[312583339,1706027443918,-313.57,0.00028386,2]
[312583341,1706027443927,-166.29551274,0.00028529,2]
[312583343,1706027443938,-160.32,0.00028551,2]
[312583345,1706027443947,-1672.54,0.00028742,2]
[312583347,1706027443956,-160.32,0.00028839,2]
[312583349,1706027443966,-1020.80297118,0.00029,2]
[312583351,1706027443975,-550.0,0.00029,3]
[312583352,1706027443984,-160.32,0.00029128,2]
[312583353,1706027443994,-160.32,0.00029416,2]
[312583354,1706027444008,-166.29551274,0.00029476,2]
[312583355,1706027444017,-160.32,0.00029704,2]
[312583356,1706027444026,-350.85247672,0.00029739,4]
[312583357,1706027444035,-175.58250697,0.000298,2]
[312583358,1706027444045,-292.85,0.00029809,2]
[312583359,1706027444057,-200.0,0.00029886,2]
[312583360,1706027444066,-160.32,0.00029993,2]
[312583361,1706027444075,-192.291184,0.0003,2]
[312583362,1706027444086,-357.91955435,0.0003,2]
[312583363,1706027444096,-9643.13201467,0.0003,2]
[312583364,1706027444105,-583.13958922,0.0003,2]
[312583365,1706027444114,-155.0,0.0003,2]
[312583366,1706027444123,-692.52631931,0.0003,2]
[312583367,1706027444133,-5623.87809387,0.0003,2]
[312583368,1706027444142,-23197.43835686,0.0003,2]
[312583369,1706027444255,-651.90782516,0.0003,2]
[312583405,1706027446368,-6279.02062856,0.0003,2]
[312583407,1706027446380,-459.91149139,0.0003,2]
[312583408,1706027446392,-550.69565633,0.0003,2]
[312583409,1706027446403,-440.80572,0.0003,2]
[312583410,1706027446427,-577.2793438,0.0003,2]
[312583411,1706027446485,-9425.0584966,0.0003,2]
[312583412,1706027446495,-153.99,0.00030137,2]
[312583413,1706027446504,-160.32,0.00030281,2]
[312583414,1706027446513,-150.0,0.000304,2]
[312583415,1706027446522,-22.71831744,0.00030424,2]
[312583416,1706027446619,-143.5771953,0.00030424,2]
[312583417,1706027446629,-160.32,0.00030569,2]
[312583418,1706027446639,-1000.0,0.00030654,2]
[312583419,1706027446649,-160.32,0.00030858,2]
[312583421,1706027446658,-200.0,0.0003089,3]
[312583423,1706027446667,-2.11833099,0.00031,3]
[312583425,1706027446679,-597.88166901,0.00031,3]
[312583427,1706027446690,-160.32,0.00031146,2]
[312583429,1706027446699,-166.29551274,0.00031371,2]
[312583431,1706027446709,-160.32,0.00031435,2]
[312583434,1706027446719,-160.32,0.00031723,2]
[312583438,1706027446729,-200.0,0.00031894,5]
[312583441,1706027446738,-263.89358247,0.00032,2]
[312583443,1706027446749,-160.32,0.00032011,2]
[312583445,1706027446759,-292.85,0.00032073,2]
[312583447,1706027446768,-160.32,0.000323,2]
[312583449,1706027446777,-166.29551274,0.00032319,2]
[312583451,1706027446786,-160.32,0.00032588,2]
[312583453,1706027446795,-1015.02507115,0.000327,2]
[312583455,1706027446805,-1015.02507104,0.000327,2]
[312583458,1706027446814,-1015.02507104,0.000327,2]
[312583460,1706027446822,-1015.02507104,0.000327,2]
[312583463,1706027446832,-1015.02507104,0.000327,2]
[312583466,1706027446840,-1015.02507104,0.000327,2]
[312583469,1706027446849,-1015.02507104,0.000327,2]
[312583472,1706027446858,-1015.02507104,0.000327,2]
[312583474,1706027446867,-1015.02507104,0.000327,2]
[312583477,1706027446877,-1015.02507104,0.000327,2]
[312583480,1706027446886,-1015.02507104,0.000327,2]
[312583483,1706027446894,-1015.02507104,0.000327,2]
[312583486,1706027446904,-1015.02507104,0.00032753,2]
[312583489,1706027446913,-160.32,0.00032877,2]
[312583492,1706027446922,-869.91,0.00032877,15]
[312583495,1706027446932,-200.0,0.00032898,7]
[312583499,1706027446942,-600.0,0.00033,2]
[312583501,1706027446952,-650.0,0.00033,3]
[312583504,1706027446961,-166.29551274,0.00033267,2]
[312583508,1706027446971,-1015.02507104,0.00033683,2]
[312583511,1706027446980,-350.85247672,0.00033771,6]
[312583513,1706027446989,-200.0,0.00033901,9]
[312583514,1706027447001,-1000.0,0.00034,4]
[312583517,1706027447012,-5000.0,0.0003409,2]
[312583519,1706027447023,-166.29551274,0.00034214,2]
[312583521,1706027447032,-292.85,0.00034337,2]
[312583523,1706027447042,-1015.02507104,0.00034614,2]
[312583525,1706027447051,-300.0,0.000349,12]
[312583527,1706027447060,-507.39456797,0.000349,2]
[312583529,1706027447070,-507.39456794,0.000349,2]
[312583531,1706027447079,-507.39456794,0.000349,2]
[312583533,1706027447088,-200.0,0.00034905,11]
[312583535,1706027447098,-1168.69402103,0.00035,15]
[312583540,1706027447138,-898.17456913,0.00035,15]
[312583542,1706027447149,-1337.305,0.00035,15]
[312583545,1706027447164,-456.9999999,0.00035,15]
[312583549,1706027447196,-284.02500002,0.00035,15]
[312583562,1706027457462,213.36,0.00020408,2]
[312583563,1706027458801,2129.08191633,0.00020452,2]
[312583564,1706027458825,6679.68887797,0.00020452,2]
[312583565,1706027458849,6679.68887797,0.00020452,2]
[312583566,1706027458873,6679.68887797,0.00020452,2]
[312583567,1706027458898,6511.39144976,0.00020452,2]
[312583568,1706027466753,168.29742821,0.00020408,2]
[312583569,1706027466778,31.70257179,0.00020408,2]
[312583570,1706027492496,150.0,0.00020408,2]
[312583571,1706027605574,164.81,0.00030942,120]
[312583572,1706027668174,391.83,0.00020452,2]
[312583573,1706027672982,320.01690756,0.00023,20]
[312583575,1706027797957,-150.0,0.00021226,2]
[312583576,1706027797978,-419.96246939,0.00021226,2]
[312583577,1706027797999,-10565.92802025,0.00021226,2]
[312583578,1706027798020,-5220.28105398,0.00021227,2]
[312583579,1706027798040,-517.06190698,0.00021228,2]
[312583580,1706027798062,-2949.83197426,0.00021228,2]
[312583581,1706027798082,-247.32726579,0.00021228,2]
[312583582,1706027798101,-420.3224339,0.00021228,2]
[312583583,1706027798121,-4353.97613252,0.00021229,2]
[312583584,1706027798142,-524.31645799,0.00021229,2]
[312583585,1706027798163,-150.0,0.00021229,2]
[312583586,1706027798186,-2404.63840992,0.00021334,2]
[312583587,1706027798206,-16845.61674429,0.00021335,2]
[312583588,1706027798229,-5196.73713073,0.00021336,2]
[312583589,1706027809178,156.96046144,0.00020708,2]
[312583590,1706027816697,3192.87206217,0.00020374,2]
[312583591,1706027817468,622.51303378,0.00020374,2]
[312583592,1706027898174,184.13413816,0.00020496,2]
[312583593,1706027898199,2133.81074879,0.00020496,2]
[312583594,1706027898222,3410.50511305,0.00020496,2]
[312583595,1706027910360,184.13413816,0.00019003,2]
[312583596,1706027925148,3085.04962676,0.00020374,2]
[312583597,1706027925172,2109.90461301,0.00020374,2]
[312583598,1706027928174,150.0,0.00020374,2]
[312583599,1706027928194,5.0,0.00020374,2]
[312583600,1706027932559,150.0,0.00020374,2]
[312583601,1706027932583,150.0,0.00020374,2]
[312583602,1706027932605,150.0,0.00020374,2]
[312583603,1706027932625,150.0,0.00020374,2]
[312583604,1706027932645,275.32154174,0.00020374,2]
[312583605,1706027932669,4569.78426496,0.00020374,2]
[312583606,1706027932693,642.96243753,0.00020374,2]
[312583607,1706027936770,155.0,0.00020374,2]
[312583608,1706027945126,5189.52314839,0.00020374,2]
[312583609,1706027949739,150.0,0.00020374,2]
[312583610,1706027949760,5.0,0.00020374,2]
[312583611,1706027951804,145.0,0.00020374,2]
[312583612,1706027951826,150.0,0.00020374,2]
[312583613,1706027951853,150.0,0.00020374,2]
[312583614,1706027951874,150.0,0.00020374,2]
[312583615,1706027951895,150.0,0.00020374,2]
[312583616,1706027951917,42.76859307,0.00020374,2]
[312583617,1706027954548,150.0,0.00020374,2]
[312583618,1706027954567,150.0,0.00020374,2]
[312583619,1706027954585,150.0,0.00020374,2]
[312583620,1706027954606,150.0,0.00020374,2]
[312583621,1706027954625,150.0,0.00020374,2]
[312583622,1706027954645,150.0,0.00020374,2]
[312583623,1706027954673,150.0,0.00020374,2]
[312583624,1706027954697,176.0143201,0.00020374,2]
[312583625,1706027954721,692.20329205,0.00020374,2]
[312583626,1706027954744,484.87297956,0.00020374,2]
[312583627,1706027955641,193.67028923,0.00016804,2]
[312583628,1706027956032,283.77,0.00020496,3]
[312583629,1706027958777,500.0,0.00020374,2]
[312583630,1706027959942,525.70670194,0.00020373,2]
[312583631,1706027960940,150.0,0.00020374,2]
[312583632,1706027960962,5.0,0.00020374,2]
[312583633,1706027965997,155.0,0.00020373,2]
[312583634,1706027971383,150.0,0.00020899,2]
[312583635,1706027971404,150.0,0.00020899,2]
[312583636,1706027971425,150.0,0.00020899,2]
[312583637,1706027971445,150.0,0.00020899,2]
[312583638,1706027971465,117.650743,0.00020899,2]
[312583639,1706027978297,-1051.37036506,0.00021003,2]
[312583640,1706027978318,-4640.64426459,0.00021004,2]
[312583641,1706027978339,-2605.47036357,0.00021005,2]
[312583642,1706027978360,-1365.02687701,0.00021005,2]
[312583643,1706027978381,-1255.57609338,0.00021005,2]
[312583644,1706027978402,-150.0,0.00021006,2]
[312583645,1706027978422,-2322.06332077,0.00021006,2]
[312583646,1706027978443,-1265.93744044,0.00021007,2]
[312583647,1706027978465,-16778.48153658,0.00021007,2]
[312583648,1706027978486,-9142.4297386,0.00021007,2]
[312583649,1706027984749,305.36683588,0.00020374,2]
[312583650,1706027993008,208.66,0.00018578,2]
[312583651,1706027993550,208.66,0.00020842,2]
[312583652,1706028013290,10565.92802025,0.00021002,2]
[312583653,1706028031204,10565.92802025,0.00021002,2]
[312583654,1706028032484,18987.32725426,0.00020842,2]
[312583655,1706028046994,8714.73810342,0.00020842,2]
[312583656,1706028051374,412.95,0.0002066,2]
[312583657,1706028056180,10565.92802025,0.00021002,2]
[312583658,1706028056213,2505.78776269,0.00021002,2]
[312583659,1706028056374,1051.37036506,0.00021002,2]
[312583660,1706028059909,4630.81540604,0.00021002,2]
[312583662,1706028075099,365.96116048,0.00021002,2]
[312583663,1706028075897,4625.59506426,0.00021002,2]
[312583664,1706028079671,1049.46828591,0.00021002,2]
[312583665,1706028091962,200.0,0.00020496,2]
[312583666,1706028099922,1437.0,0.00021002,2]
[312583667,1706028111727,23900.0,0.00020496,2]
[312583668,1706028133851,166.29551274,0.00020905,2]
[312583669,1706028134993,154.45,0.0002065,2]
[312583670,1706028147702,10565.92802025,0.00021002,2]
[312583671,1706028163747,10565.92802025,0.00021002,2]
[312583672,1706028167990,250.0,0.00020496,2]
[312583673,1706028197065,155.0,0.00020496,2]
[312583674,1706028250221,10565.92802025,0.00021002,2]
[312583675,1706028263592,176.47,0.0002022,2]
[312583676,1706028264856,176.47,0.00020768,2]
[312583677,1706028309737,162.8,0.00020382,2]
[312583678,1706028312729,561.1698166,0.00018886,2]
[312583679,1706028313339,419.96246939,0.00021002,2]
[312583680,1706028314846,4353.97613252,0.00021002,2]
[312583681,1706028325301,1707.76302595,0.00020583,2]
[312583682,1706028328807,517.06190698,0.00021002,2]
[312583683,1706028330526,488.57813172,0.00021002,2]
[312583684,1706028350590,546.03451278,0.00021002,7]
[312583685,1706028365085,4244.46,0.00020382,2]
[312583686,1706028365542,2000.0,0.00020548,2]
[312583687,1706028368594,403.44927136,0.00021002,7]
[312583688,1706028371049,33402.57766687,0.00021002,2]
[312583689,1706028387615,33402.57766687,0.00021002,2]
[312583690,1706028404789,26374.70146911,0.00021002,2]
[312583691,1706028412141,190.97,0.00020382,2]
[312583692,1706028434467,164.79,0.00016306,2]
[312583693,1706028441545,187.79,0.00019106,2]
[312583694,1706028464233,406.94668334,0.00021002,2]
[312583695,1706028519101,155.70351298,0.00021002,2]
[312583696,1706028522528,1000.0,0.00020826,2]
[312583697,1706028529421,23900.0,0.00020826,2]
[312583698,1706028563629,154.45,0.00020982,2]
[312583699,1706028569146,-27705.31054573,0.00021003,2]
[312583700,1706028569166,-525.30337346,0.00021005,2]
[312583701,1706028569186,-200.0,0.00021017,2]
[312583702,1706028569206,-3006.94491669,0.00021114,2]
[312583703,1706028569225,-356.14258968,0.00021209,2]
[312583704,1706028569244,-514.8892999,0.00021218,2]
[312583705,1706028569263,-568.75344564,0.00021218,2]
[312583706,1706028569285,-168.92764182,0.00021218,2]
[312583707,1706028569304,-2661.14392121,0.00021219,2]
[312583708,1706028569324,-2504.64109149,0.0002122,2]
[312583709,1706028569343,-300.68898993,0.0002122,2]
[312583710,1706028569365,-7655.03913144,0.0002122,2]
[312583711,1706028569387,-33789.68053584,0.0002122,2]
[312583712,1706028569406,-171.60329861,0.00021221,2]
[312583713,1706028569424,-156.10315938,0.00021221,2]
[312583714,1706028569444,-2604.52934612,0.00021221,2]
[312583715,1706028569462,-1265.89649404,0.00021221,2]
[312583716,1706028569482,-2320.72288232,0.00021221,2]
[312583717,1706028569500,-6176.36157322,0.00021221,2]
[312583718,1706028569520,-158.8948,0.00021222,2]
[312583719,1706028569540,-203.12390135,0.00021222,2]
[312583720,1706028569560,-4372.83198418,0.00021222,2]
[312583721,1706028569579,-1109.76186925,0.00021222,2]
[312583722,1706028569599,-499.99,0.00021222,2]
[312583723,1706028569617,-24364.25256721,0.00021223,2]
[312583724,1706028569636,-230.54691082,0.00021223,2]
[312583725,1706028569655,-1071.57950665,0.00021223,2]
[312583726,1706028569674,-176.47,0.00021316,2]
[312583727,1706028569693,-247.15421615,0.00021355,2]
[312583728,1706028569711,-512.89,0.0002137,2]
[312583729,1706028569732,-187.79,0.0002137,2]
[312583730,1706028569752,-282.76563903,0.00021475,2]
[312583731,1706028569771,-1096.68,0.00021544,2]
[312583732,1706028569793,-500.0,0.00021544,2]
[312583733,1706028569813,-3679.30863627,0.00021565,4]
[312583734,1706028569834,-1061.53918762,0.00021571,2]
[312583735,1706028569854,-310.36952965,0.00021571,2]
[312583736,1706028569873,-236.14012151,0.00021571,2]
[312583737,1706028570074,-694.52874949,0.00021571,2]
[312583738,1706028570095,-2945.53874199,0.00021572,2]
[312583739,1706028570115,-523.73272724,0.00021572,2]
[312583740,1706028570135,-18205.61867507,0.00021573,2]
[312583758,1706028632564,-150.75,0.00021116,2]
[312583759,1706028632575,-166.29551274,0.00021121,2]
[312583760,1706028632586,-2309.92827706,0.00021573,2]
[312583777,1706028638408,-1047.91794788,0.00021573,2]
[312583778,1706028638418,-3001.16331057,0.00021573,2]
[312583779,1706028638428,-840.60571672,0.00021575,2]
[312583783,1706028638731,-134.58066393,0.00021575,2]
[312583785,1706028638742,-3039.48901935,0.00021575,2]
[312583787,1706028638752,-19559.17598066,0.00021575,2]
[312583789,1706028638764,-2386.83932782,0.00021575,2]
[312583791,1706028638776,-3192.35839152,0.00021575,2]
[312583793,1706028638785,-7559.04133687,0.00021575,2]
[312583797,1706028638807,-5037.92224109,0.00021575,2]
[312583808,1706028638905,-8816.7,0.00021575,2]
[312583810,1706028638917,-435.87771536,0.00021575,2]
[312583816,1706028638962,-46494.92828188,0.00021575,2]
[312583818,1706028638974,-299.55621373,0.00021575,2]
[312583821,1706028638991,-654.70682192,0.00021575,2]
[312583860,1706028640938,-871.19482584,0.00021575,2]
[312583861,1706028640950,-1143.59020439,0.00021575,2]
[312583862,1706028640961,-1177.51,0.00021575,2]
[312583863,1706028641207,-661.41075,0.00021575,2]
[312583864,1706028641626,-26847.56160892,0.00021575,2]
[312583865,1706028641636,-31365.0842,0.00021575,2]
[312583866,1706028641645,-500.0,0.00021575,2]
[312583867,1706028641654,-155.0,0.00021575,2]
[312583868,1706028641663,-186.94,0.00021644,2]
[312583869,1706028641672,-176.47,0.00021864,2]
[312583870,1706028641682,-573.8,0.00021918,2]
[312583871,1706028641692,-176.47,0.00022412,2]
[312583872,1706028641701,-162.8,0.00022437,2]
[312583873,1706028641710,-1794.17840074,0.000229,2]
[312583875,1706028641719,-176.47,0.0002296,2]
[312583876,1706028641728,-688.9938716,0.00023,20]
[312583878,1706028641737,-155.0,0.00023,2]
[312583880,1706028641747,-847.06410669,0.00023,2]
[312583882,1706028641757,-282.89706329,0.00023,2]
[312583884,1706028641765,-1000.0,0.0002343,2]
[312583886,1706028641774,-176.47,0.00023508,2]
[312583887,1706028641783,-187.79,0.00023634,2]
[312583888,1706028641792,-176.47,0.00024056,2]
[312583889,1706028641802,-162.8,0.00024492,2]
[312583890,1706028641811,-176.47,0.00024604,2]
[312583891,1706028641821,-176.47,0.00025152,2]
[312583892,1706028641830,-250.0,0.00025273,2]
[312583893,1706028641839,-200.0,0.00025431,2]
[312583894,1706028641848,-496.0,0.00025582,2]
[312583895,1706028641857,-250.0,0.00025582,2]